lending/lending_fUSD_20250409
["ID","MTS","AMOUNT","RATE_DAILY","PERIOD"]
[357616705,1744235561849,-500.0,0.00041369,2]
[357616706,1744235561859,-1217.62,0.00041369,2]
[357616707,1744235561868,-500.0,0.00041369,2]
[357616708,1744235561878,-500.0,0.00041369,2]
[357616709,1744235561887,-653.91,0.00041369,2]
[357616710,1744235561897,-2083.86,0.00041369,2]
[357616711,1744235561907,-2729.49,0.00041369,2]
[357616712,1744235561917,-545.55,0.00041369,2]
[357616713,1744235561927,-500.0,0.00041369,2]
[357616714,1744235561937,-500.0,0.00041369,2]
[357616715,1744235561946,-510.38,0.00041369,2]
[357616716,1744235561956,-1954.17,0.00041369,2]
[357616717,1744235561966,-1354.05,0.00041369,2]
[357616718,1744235561976,-814.9,0.00041369,2]
[357616719,1744235561986,-500.0,0.00041369,2]
[357616720,1744235561995,-1048.37,0.00041369,2]
[357616721,1744235562005,-500.0,0.00041369,2]
[357616722,1744235562015,-4649.78,0.00041369,2]
[357616723,1744235562024,-500.0,0.00041369,2]
[357616724,1744235562035,-1964.65,0.00041369,2]
[357616725,1744235562045,-694.5,0.00041369,2]
[357616726,1744235562055,-1127.83,0.00041369,2]
[357616727,1744235562065,-507.13,0.00041369,2]
[357616728,1744235562075,-570.34,0.00041369,2]
[357616729,1744235562085,-1498.03,0.00041369,2]
[357616730,1744235562095,-809.55,0.00041369,2]
[357616731,1744235562105,-2525.83,0.00041369,2]
[357616732,1744235562115,-955.21,0.00041369,2]
[357616733,1744235562125,-1151.05,0.00041369,2]
[357616734,1744235562135,-500.0,0.00041369,2]
[357616735,1744235562145,-500.0,0.00041369,2]
[357616736,1744235562154,-500.0,0.00041369,2]
[357616737,1744235562164,-500.0,0.00041369,2]
[357616738,1744235562174,-500.0,0.00041369,2]
[357616739,1744235562183,-511.52,0.00041369,2]
[357616740,1744235562193,-686.74,0.00041369,2]
[357616741,1744235562203,-500.0,0.00041369,2]
[357616742,1744235562213,-5051.26,0.00041369,2]
[357616743,1744235562223,-500.0,0.00041369,2]
[357616744,1744235562233,-507.91,0.00041369,2]
[357616745,1744235562243,-778.41918599,0.00041369,30]
[357616746,1744235562253,-1665.37,0.00041442,2]
[357616747,1744235562263,-165.94339,0.00041488,7]
[357616748,1744235562273,-151.041005,0.00041498,120]
[357616749,1744235562284,-150.0,0.00041506,30]
[357616750,1744235562294,-500.0,0.00041643,2]
[357616751,1744235562304,-1000.0,0.00041643,2]
[357616752,1744235562314,-500.0,0.00041643,2]
[357616753,1744235562323,-768.82,0.00041643,2]
[357616754,1744235562333,-1033.22,0.00041643,2]
[357616755,1744235562343,-690.19,0.00041643,2]
[357616756,1744235562353,-500.0,0.00041643,2]
[357616757,1744235562362,-500.0,0.00041643,2]
[357616758,1744235562373,-653.93,0.00041643,2]
[357616759,1744235562383,-500.0,0.00041643,2]
[357616760,1744235562392,-634.71756544,0.00041643,2]
[357616761,1744235562403,-500.0,0.00041643,2]
[357616762,1744235562412,-500.0,0.00041643,2]
[357616763,1744235562422,-500.0,0.00041643,2]
[357616764,1744235562432,-562.39,0.00041643,2]
[357616765,1744235562442,-500.0,0.00041643,2]
[357616766,1744235562453,-500.0,0.00041643,2]
[357616767,1744235562463,-500.0,0.00041643,2]
[357616768,1744235562478,-523.63,0.00041643,2]
[357616769,1744235562487,-575.25,0.00041643,2]
[357616770,1744235562497,-643.66,0.00041643,2]
[357616771,1744235562507,-500.0,0.00041643,2]
[357616772,1744235562519,-500.0,0.00041643,2]
[357616773,1744235562529,-517.26,0.00041643,2]
[357616774,1744235562539,-509.1,0.00041643,2]
[357616775,1744235562550,-544.02,0.00041643,2]
[357616776,1744235562561,-1591.25,0.00041643,2]
[357616777,1744235562571,-922.766495,0.00041643,2]
[357616778,1744235562581,-217.09994277,0.00041643,2]
[357616779,1744235562591,-500.0,0.00041643,2]
[357616780,1744235562601,-500.0,0.00041643,2]
[357616781,1744235562612,-512.21,0.00041643,2]
[357616782,1744235562622,-1481.605419,0.00041643,2]
[357616783,1744235562632,-575.18,0.00041643,2]
[357616784,1744235562643,-1103.241651,0.00041643,2]
[357616785,1744235562653,-500.0,0.00041643,2]
[357616786,1744235562663,-555.55,0.00041643,2]
[357616787,1744235562673,-716.17,0.00041643,2]
[357616788,1744235562684,-569.8,0.00041643,2]
[357616789,1744235562694,-500.0,0.00041643,2]
[357616790,1744235562704,-500.0,0.00041643,2]
[357616791,1744235562714,-500.0,0.00041643,2]
[357616792,1744235562724,-500.0,0.00041643,2]
[357616793,1744235562734,-500.0,0.00041643,2]
[357616794,1744235562744,-500.0,0.00041643,2]
[357616795,1744235562754,-523.55,0.00041643,2]
[357616796,1744235562764,-500.0,0.00041643,2]
[357616797,1744235562774,-500.0,0.00041643,2]
[357616798,1744235562784,-641.56,0.00041643,2]
[357616799,1744235562794,-522.12,0.00041643,2]
[357616800,1744235562804,-671.33,0.00041643,2]
[357616801,1744235562814,-500.0,0.00041643,2]
[357616802,1744235562824,-898.3,0.00041643,2]
[357616803,1744235562834,-500.0,0.00041643,2]
[357616804,1744235562844,-500.0,0.00041643,2]
[357616805,1744235562855,-500.0,0.00041643,2]
[357616806,1744235562865,-500.0,0.00041643,2]
[357616807,1744235562875,-156.788597,0.00041643,2]
[357616808,1744235562887,-1488.11,0.00041643,2]
[357616809,1744235562896,-500.0,0.00041643,2]
[357616810,1744235562910,-500.0,0.00041643,2]
[357616811,1744235562920,-1346.88,0.00041643,2]
[357616812,1744235562931,-500.0,0.00041643,2]
[357616813,1744235562940,-600.91,0.00041643,2]
[357616814,1744235562951,-500.0,0.00041643,2]
[357616815,1744235562960,-572.3,0.00041643,2]
[357616816,1744235562971,-500.0,0.00041643,2]
[357616817,1744235562981,-500.0,0.00041643,2]
[357616818,1744235562991,-1062.56,0.00041643,2]
[357616819,1744235563002,-1328.67,0.00041643,2]
[357616820,1744235563298,-1098.1,0.00041643,2]
[357616821,1744235563309,-1109.78,0.00041643,2]
[357616822,1744235563319,-500.0,0.00041643,2]
[357616823,1744235563328,-500.0,0.00041643,2]
[357616824,1744235563338,-500.0,0.00041643,2]
[357616825,1744235563347,-2058.98,0.00041643,2]
[357616826,1744235563357,-500.0,0.00041643,2]
[357616827,1744235563367,-601.54,0.00041643,2]
[357616828,1744235563377,-704.15,0.00041643,2]
[357616829,1744235563387,-236.90773349,0.00041643,2]
[357616830,1744235563397,-500.0,0.00041643,2]
[357616831,1744235563408,-1533.75,0.00041643,2]
[357616832,1744235563418,-890.15,0.00041643,2]
[357616833,1744235563428,-2033.59,0.00041643,2]
[357616834,1744235563439,-500.0,0.00041643,2]
[357616835,1744235563450,-1091.45,0.00041643,2]
[357616836,1744235563460,-998.38,0.00041643,2]
[357616837,1744235563473,-990.73,0.00041643,2]
[357616838,1744235563483,-740.02,0.00041643,2]
[357616839,1744235563493,-500.0,0.00041643,2]
[357616840,1744235563503,-840.51,0.00041643,2]
[357616841,1744235563515,-1255.28,0.00041643,2]
[357616842,1744235563524,-500.0,0.00041643,2]
[357616843,1744235563535,-628.73,0.00041643,2]
[357616844,1744235563546,-1122.08,0.00041643,2]
[357616845,1744235563556,-851.89,0.00041643,2]
[357616846,1744235563567,-500.0,0.00041643,2]
[357616847,1744235563576,-500.0,0.00041643,2]
[357616848,1744235563585,-1594.69,0.00041643,2]
[357616849,1744235563595,-846.31,0.00041643,2]
[357616850,1744235563604,-634.01,0.00041643,2]
[357616851,1744235563614,-500.0,0.00041643,2]
[357616852,1744235563624,-500.0,0.00041643,2]
[357616853,1744235563634,-1789.24,0.00041643,2]
[357616854,1744235563644,-500.0,0.00041643,2]
[357616855,1744235563654,-500.0,0.00041643,2]
[357616856,1744235563664,-500.0,0.00041643,2]
[357616857,1744235563675,-904.2,0.00041643,2]
[357616858,1744235563684,-2100.49,0.00041643,2]
[357616859,1744235563694,-1008.97,0.00041643,2]
[357616860,1744235563704,-575.38,0.00041643,2]
[357616861,1744235563713,-980.91,0.00041643,2]
[357616862,1744235563723,-744.07,0.00041643,2]
[357616863,1744235563733,-500.0,0.00041643,2]
[357616864,1744235563743,-1364.94,0.00041643,2]
[357616865,1744235563753,-500.0,0.00041643,2]
[357616866,1744235563763,-747.87,0.00041643,2]
[357616867,1744235563772,-850.11,0.00041643,2]
[357616868,1744235563782,-1247.64,0.00041643,2]
[357616869,1744235563792,-1102.32,0.00041643,2]
[357616870,1744235563802,-659.47,0.00041643,2]
[357616871,1744235563811,-588.76,0.00041643,2]
[357616872,1744235563821,-500.0,0.00041643,2]
[357616873,1744235563831,-500.0,0.00041643,2]
[357616874,1744235563840,-626.4,0.00041643,2]
[357616875,1744235563850,-552.34996839,0.00041643,2]
[357616876,1744235563859,-500.0,0.00041643,2]
[357616877,1744235563869,-992.17,0.00041643,2]
[357616878,1744235563879,-500.0,0.00041643,2]
[357616879,1744235563888,-500.0,0.00041643,2]
[357616880,1744235563898,-500.0,0.00041643,2]
[357616881,1744235563908,-863.74,0.00041643,2]
[357616882,1744235563917,-669.2,0.00041643,2]
[357616883,1744235563927,-500.0,0.00041643,2]
[357616884,1744235563936,-500.2,0.00041643,2]
[357616885,1744235563946,-500.0,0.00041643,2]
[357616886,1744235563955,-500.0,0.00041643,2]
[357616887,1744235563965,-500.0,0.00041643,2]
[357616888,1744235563975,-623.22,0.00041643,2]
[357616889,1744235563984,-987.07,0.00041643,2]
[357616890,1744235563993,-500.0,0.00041643,2]
[357616891,1744235564003,-500.0,0.00041643,2]
[357616892,1744235564012,-500.0,0.00041643,2]
[357616893,1744235564021,-663.93,0.00041643,2]
[357616894,1744235564031,-500.0,0.00041643,2]
[357616895,1744235564040,-500.0,0.00041643,2]
[357616896,1744235564050,-950.19,0.00041643,2]
[357616897,1744235564060,-1150.41,0.00041643,2]
[357616898,1744235564071,-700.43,0.00041643,2]
[357616899,1744235564080,-500.0,0.00041643,2]
[357616900,1744235564090,-1196.11,0.00041643,2]
[357616901,1744235564099,-533.1,0.00041643,2]
[357616902,1744235564108,-1644.09,0.00041643,2]
[357616903,1744235564118,-500.0,0.00041643,2]
[357616904,1744235564127,-500.0,0.00041643,2]
[357616905,1744235564136,-509.54,0.00041643,2]
[357616906,1744235564146,-605.75,0.00041643,2]
[357616907,1744235564156,-872.19,0.00041643,2]
[357616908,1744235564166,-2888.05,0.00041643,2]
[357616909,1744235564175,-1530.18,0.00041643,2]
[357616910,1744235564184,-538.29,0.00041643,2]
[357616911,1744235564193,-1392.95,0.00041643,2]
[357616912,1744235564202,-529.21,0.00041643,2]
[357616913,1744235564212,-760.73,0.00041643,2]
[357616914,1744235564221,-1014.21,0.00041643,2]
[357616915,1744235564231,-728.15,0.00041643,2]
[357616916,1744235564240,-671.68,0.00041643,2]
[357616917,1744235564250,-582.4,0.00041643,2]
[357616918,1744235564261,-494.89225323,0.00041643,2]
[357616919,1744235564271,-600.66,0.00041643,2]
[357616920,1744235564280,-905.89,0.00041643,2]
[357616921,1744235564289,-500.0,0.00041643,2]
[357616922,1744235564299,-640.01,0.00041643,120]
[357616923,1744235564308,-500.0,0.00041643,2]
[357616924,1744235564318,-600.12,0.00041643,2]
[357616925,1744235564327,-500.0,0.00041643,2]
[357616926,1744235564336,-611.07049639,0.00041643,2]
[357616927,1744235564345,-696.24,0.00041643,2]
[357616928,1744235564355,-574.51,0.00041643,2]
[357616929,1744235564365,-621.38,0.00041643,2]
[357616930,1744235564376,-564.04,0.00041643,2]
[357616931,1744235564386,-500.0,0.00041643,2]
[357616932,1744235564396,-662.39,0.00041643,2]
[357616933,1744235564405,-1138.96,0.00041643,2]
[357616934,1744235564415,-500.0,0.00041643,2]
[357616935,1744235564424,-506.09,0.00041643,2]
[357616936,1744235564434,-593.38,0.00041643,2]
[357616937,1744235564444,-557.52,0.00041643,2]
[357616938,1744235564454,-189.74416841,0.00041643,2]
[357616939,1744235564463,-978.21,0.00041643,2]
[357616940,1744235564476,-500.0,0.00041643,2]
[357616941,1744235564486,-500.0,0.00041643,2]
[357616942,1744235564495,-879.62,0.00041643,2]
[357616943,1744235564505,-915.14,0.00041643,2]
[357616944,1744235564515,-972.17,0.00041643,2]
[357616945,1744235564526,-481.53,0.00041643,2]
[357616946,1744235564536,-689.1,0.00041643,2]
[357616947,1744235564545,-693.42,0.00041643,2]
[357616948,1744235564556,-500.0,0.00041643,2]
[357616949,1744235564566,-641.85235283,0.00041643,2]
[357616950,1744235564576,-1204.18,0.00041643,2]
[357616951,1744235564586,-500.0,0.00041643,2]
[357616952,1744235564596,-2109.43,0.00041643,2]
[357616953,1744235564605,-922.86,0.00041643,2]
[357616954,1744235564615,-500.0,0.00041643,2]
[357616955,1744235564625,-500.0,0.00041643,2]
[357616956,1744235564635,-738.28,0.00041643,2]
[357616957,1744235564644,-524.33,0.00041643,2]
[357616958,1744235564653,-582.79,0.00041643,2]
[357616959,1744235564662,-500.0,0.00041643,2]
[357616960,1744235564671,-529.9,0.00041643,2]
[357616961,1744235564680,-520.25,0.00041643,2]
[357616962,1744235564690,-500.0,0.00041643,2]
[357616963,1744235564700,-500.0,0.00041643,2]
[357616964,1744235564710,-500.0,0.00041643,2]
[357616965,1744235564719,-563.51,0.00041643,2]
[357616966,1744235564734,-515.76,0.00041643,2]
[357616967,1744235564744,-1455.64,0.00041643,2]
[357616968,1744235564754,-500.0,0.00041643,2]
[357616969,1744235564764,-944.08,0.00041643,2]
[357616970,1744235564773,-1259.75,0.00041643,2]
[357616971,1744235564783,-949.83,0.00041643,2]
[357616972,1744235564793,-867.9,0.00041643,2]
[357616973,1744235564802,-712.22,0.00041643,2]
[357616974,1744235564812,-676.54,0.00041643,2]
[357616975,1744235564822,-2873.89,0.00041643,2]
[357616976,1744235564832,-865.86,0.00041643,2]
[357616977,1744235564842,-734.44,0.00041643,2]
[357616978,1744235564851,-1213.14,0.00041643,2]
[357616979,1744235564861,-500.0,0.00041643,2]
[357616980,1744235564871,-510.47,0.00041643,2]
[357616981,1744235564880,-500.0,0.00041643,2]
[357616982,1744235564890,-500.0,0.00041643,2]
[357616983,1744235564899,-1235.75,0.00041643,2]
[357616984,1744235564908,-2062.74,0.00041643,2]
[357616985,1744235564918,-500.83208594,0.00041643,2]
[357616986,1744235564928,-500.0,0.00041643,2]
[357616987,1744235564938,-1627.43,0.00041643,2]
[357616988,1744235564947,-779.34,0.00041643,2]
[357616989,1744235564957,-1736.3,0.00041643,2]
[357616990,1744235564967,-500.0,0.00041643,2]
[357616991,1744235564976,-343.78832954,0.00041643,2]
[357616992,1744235564986,-579.96,0.00041643,2]
[357616993,1744235564995,-2303.11,0.00041643,2]
[357616994,1744235565005,-21393.93,0.00041643,2]
[357616995,1744235565014,-544.19722975,0.00041643,2]
[357616996,1744235565024,-1487.15,0.00041643,2]
[357616997,1744235565034,-500.0,0.00041643,2]
[357616998,1744235565043,-1444.32,0.00041643,2]
[357616999,1744235565053,-531.51,0.00041643,2]
[357617000,1744235565062,-798.61,0.00041643,2]
[357617001,1744235565071,-663.86,0.00041643,2]
[357617002,1744235565082,-1448.83,0.00041643,2]
[357617003,1744235565091,-1070.68,0.00041643,2]
[357617004,1744235565101,-720.05,0.00041643,2]
[357617005,1744235565110,-4523.75,0.00041643,2]
[357617006,1744235565119,-1045.81,0.00041643,2]
[357617007,1744235565129,-2369.93,0.00041643,2]
[357617008,1744235565138,-675.07,0.00041643,2]
[357617009,1744235565148,-815.31,0.00041643,2]
[357617010,1744235565157,-680.79,0.00041643,2]
[357617011,1744235565167,-3877.45,0.00041643,2]
[357617012,1744235565176,-1072.51,0.00041643,2]
[357617013,1744235565185,-920.84,0.00041643,2]
[357617014,1744235565195,-1250.82,0.00041643,2]
[357617015,1744235565205,-1683.83,0.00041643,2]
[357617016,1744235565214,-904.45,0.00041643,2]
[357617017,1744235565224,-8073.34,0.00041643,2]
[357617018,1744235565233,-951.26,0.00041643,2]
[357617019,1744235565243,-567.52,0.00041643,2]
[357617020,1744235565252,-500.0,0.00041643,2]
[357617021,1744235565262,-507.52,0.00041643,2]
[357617022,1744235565271,-714.37,0.00041643,2]
[357617023,1744235565281,-1034.56,0.00041643,2]
[357617024,1744235565290,-7044.24,0.00041643,2]
[357617025,1744235565300,-555.00668294,0.00041643,2]
[357617026,1744235565309,-593.89,0.00041643,2]
[357617027,1744235565319,-614.18,0.00041643,2]
[357617028,1744235565329,-1119.95,0.00041643,2]
[357617029,1744235565338,-1165.25,0.00041643,2]
[357617030,1744235565348,-1010.11,0.00041643,2]
[357617031,1744235565357,-3541.99,0.00041643,2]
[357617032,1744235565366,-2285.66,0.00041643,2]
[357617033,1744235565376,-1097.67,0.00041643,2]
[357617034,1744235565385,-1278.84,0.00041643,30]
[357617035,1744235565394,-500.0,0.00041643,2]
[357617036,1744235565404,-500.0,0.00041643,2]
[357617037,1744235565414,-500.0,0.00041643,2]
[357617038,1744235565423,-737.02,0.00041643,2]
[357617039,1744235565433,-1205.42,0.00041643,2]
[357617040,1744235565443,-622.25,0.00041643,2]
[357617041,1744235565453,-626.72,0.00041643,2]
[357617042,1744235565463,-1595.13,0.00041643,2]
[357617043,1744235565476,-1037.81,0.00041643,2]
[357617044,1744235565486,-993.54,0.00041643,2]
[357617045,1744235565496,-4569.67,0.00041643,2]
[357617046,1744235565506,-597.13,0.00041643,2]
[357617047,1744235565516,-925.07,0.00041643,2]
[357617048,1744235565526,-930.17,0.00041643,2]
[357617049,1744235565536,-500.0,0.00041643,2]
[357617050,1744235565547,-733.46,0.00041643,2]
[357617051,1744235565557,-500.0,0.00041643,2]
[357617052,1744235565567,-803.16,0.00041643,2]
[357617053,1744235565577,-1134.05,0.00041643,2]
[357617054,1744235565587,-6999.86,0.00041643,2]
[357617055,1744235565596,-500.0,0.00041643,2]
[357617056,1744235565606,-2881.42,0.00041643,2]
[357617057,1744235565616,-42423.7,0.00041643,2]
[357617058,1744235565626,-500.0,0.00041643,2]
[357617059,1744235565810,-1337.8,0.00041643,2]
[357617060,1744235565820,-1079.31,0.00041643,2]
[357617061,1744235565829,-509.05,0.00041643,2]
[357617062,1744235565838,-500.0,0.00041643,2]
[357617063,1744235565848,-1032.24,0.00041643,2]
[357617064,1744235565858,-1046.49,0.00041643,2]
[357617065,1744235565867,-1965.19,0.00041643,2]
[357617066,1744235565876,-1002.75,0.00041643,2]
[357617067,1744235565886,-23770.72,0.00041643,2]
[357617068,1744235565895,-500.0,0.00041643,2]
[357617069,1744235565904,-500.0,0.00041643,2]
[357617070,1744235565913,-1158.53,0.00041643,2]
[357617071,1744235565923,-500.0,0.00041643,2]
[357617072,1744235565932,-2575.45,0.00041643,2]
[357617073,1744235565941,-500.0,0.00041643,2]
[357617074,1744235565951,-500.0,0.00041643,2]
[357617075,1744235565960,-839.12,0.00041643,2]
[357617076,1744235565969,-1417.52,0.00041643,2]
[357617077,1744235565979,-375.65,0.00041643,2]
[357617078,1744235565988,-2351.29,0.00041643,2]
[357617079,1744235565998,-500.0,0.00041643,2]
[357617080,1744235566007,-925.42,0.00041643,2]
[357617081,1744235566016,-500.0,0.00041643,2]
[357617082,1744235566025,-500.0,0.00041643,2]
[357617083,1744235566035,-500.0,0.00041643,2]
[357617084,1744235566044,-4543.65,0.00041643,2]
[357617085,1744235566054,-500.0,0.00041643,2]
[357617086,1744235566064,-589.28,0.00041643,2]
[357617087,1744235566074,-500.0,0.00041643,2]
[357617088,1744235566083,-1261.56,0.00041643,2]
[357617089,1744235566092,-908.44,0.00041643,2]
[357617090,1744235566101,-867.74,0.00041643,2]
[357617091,1744235566111,-907.73,0.00041643,2]
[357617092,1744235566120,-660.09,0.00041643,2]
[357617093,1744235566130,-1190.9,0.00041643,2]
[357617094,1744235566139,-1267.15,0.00041643,2]
[357617095,1744235566148,-500.0,0.00041643,2]
[357617096,1744235566157,-4887.83,0.00041643,2]
[357617097,1744235566167,-575.82,0.00041643,2]
[357617098,1744235566175,-774.45,0.00041643,2]
[357617099,1744235566185,-2640.49,0.00041643,2]
[357617100,1744235566194,-929.61,0.00041643,2]
[357617101,1744235566203,-570.35,0.00041643,2]
[357617102,1744235566212,-1204.87,0.00041643,2]
[357617103,1744235566221,-775.07,0.00041643,2]
[357617104,1744235566231,-852.59,0.00041643,2]
[357617105,1744235566240,-535.49,0.00041643,2]
[357617106,1744235566249,-706.53,0.00041643,2]
[357617107,1744235566259,-561.8,0.00041643,2]
[357617108,1744235566268,-295.48057111,0.00041643,2]
[357617109,1744235566278,-1156.21,0.00041643,2]
[357617110,1744235566287,-1013.54,0.00041643,2]
[357617111,1744235566297,-1035.19,0.00041643,2]
[357617112,1744235566306,-1279.0,0.00041643,2]
[357617113,1744235566315,-846.03,0.00041643,2]
[357617114,1744235566325,-2136.41,0.00041643,2]
[357617115,1744235566334,-500.0,0.00041643,2]
[357617116,1744235566343,-4235.64,0.00041643,2]
[357617117,1744235566352,-592.54,0.00041643,2]
[357617118,1744235566361,-1028.37,0.00041643,2]
[357617119,1744235566370,-655.91,0.00041643,2]
[357617120,1744235566380,-774.63,0.00041643,2]
[357617121,1744235566390,-500.0,0.00041643,2]
[357617122,1744235566400,-668.99,0.00041643,2]
[357617123,1744235566410,-635.46,0.00041643,2]
[357617124,1744235566418,-771.42,0.00041643,2]
[357617125,1744235566428,-150.0,0.00041643,30]
[357617126,1744235566437,-533.29089831,0.00041643,2]
[357617127,1744235566446,-500.0,0.00041643,2]
[357617128,1744235566455,-500.0,0.00041643,2]
[357617129,1744235566464,-631.73,0.00041643,2]
[357617130,1744235566478,-1805.21,0.00041643,2]
[357617131,1744235566487,-500.0,0.00041643,2]
[357617132,1744235566496,-500.0,0.00041643,2]
[357617133,1744235566506,-2082.58,0.00041643,2]
[357617134,1744235566517,-950.96,0.00041643,2]
[357617135,1744235566526,-548.27,0.00041643,2]
[357617136,1744235566534,-777.86,0.00041643,2]
[357617137,1744235566544,-500.0,0.00041643,2]
[357617138,1744235566554,-720.17,0.00041643,2]
[357617139,1744235566563,-1059.64,0.00041643,2]
[357617140,1744235566572,-587.39,0.00041643,2]
[357617141,1744235566581,-1208.61,0.00041643,2]
[357617142,1744235566590,-174266.75,0.00041643,2]
[357617143,1744235566600,-1106.78,0.00041643,2]
[357617144,1744235566610,-1260.1,0.00041643,2]
[357617145,1744235566619,-500.0,0.00041643,2]
[357617146,1744235566629,-738.67,0.00041643,2]
[357617147,1744235566638,-1252.62,0.00041643,2]
[357617148,1744235566648,-500.0,0.00041643,2]
[357617149,1744235566658,-1523.75,0.00041643,2]
[357617150,1744235566667,-818.49,0.00041643,2]
[357617151,1744235566676,-1179.84,0.00041643,2]
[357617152,1744235566685,-1025.1,0.00041643,2]
[357617153,1744235566694,-2893.36,0.00041643,2]
[357617154,1744235566703,-764.1,0.00041643,2]
[357617155,1744235566712,-21329.92,0.00041643,2]
[357617156,1744235566721,-707.54,0.00041643,2]
[357617157,1744235566731,-500.0,0.00041643,2]
[357617158,1744235566740,-1217.62,0.00041643,2]
[357617159,1744235566750,-500.0,0.00041643,2]
[357617160,1744235566760,-500.0,0.00041643,2]
[357617161,1744235566771,-653.91,0.00041643,2]
[357617162,1744235566782,-2083.86,0.00041643,2]
[357617163,1744235566793,-2729.49,0.00041643,2]
[357617164,1744235566804,-545.55,0.00041643,2]
[357617165,1744235566817,-500.0,0.00041643,2]
[357617166,1744235566829,-500.0,0.00041643,2]
[357617167,1744235566840,-510.38,0.00041643,2]
[357617168,1744235566851,-1954.17,0.00041643,2]
[357617169,1744235566863,-1354.05,0.00041643,2]
[357617170,1744235566875,-814.9,0.00041643,2]
[357617171,1744235566887,-500.0,0.00041643,2]
[357617172,1744235566900,-1048.37,0.00041643,2]
[357617173,1744235566920,-500.0,0.00041643,2]
[357617174,1744235566932,-4649.78,0.00041643,2]
[357617175,1744235566943,-500.0,0.00041643,2]
[357617176,1744235566955,-1964.65,0.00041643,2]
[357617177,1744235566974,-694.5,0.00041643,2]
[357617178,1744235566985,-1127.83,0.00041643,2]
[357617179,1744235566996,-507.13,0.00041643,2]
[357617180,1744235567008,-570.34,0.00041643,2]
[357617181,1744235567019,-1498.03,0.00041643,2]
[357617182,1744235567031,-809.55,0.00041643,2]
[357617183,1744235567044,-2525.83,0.00041643,2]
[357617184,1744235567055,-955.21,0.00041643,2]
[357617185,1744235567068,-1151.05,0.00041643,2]
[357617186,1744235567079,-500.0,0.00041643,2]
[357617187,1744235567090,-500.0,0.00041643,2]
[357617188,1744235567105,-500.0,0.00041643,2]
[357617189,1744235567116,-500.0,0.00041643,2]
[357617190,1744235567127,-500.0,0.00041643,2]
[357617191,1744235567139,-511.52,0.00041643,2]
[357617192,1744235567150,-686.74,0.00041643,2]
[357617193,1744235567163,-500.0,0.00041643,2]
[357617194,1744235567174,-500.0,0.00041643,2]
[357617195,1744235567186,-507.91,0.00041643,2]
[357617196,1744235567197,-5051.26,0.00041643,2]
[357617197,1744235567210,-250.0,0.00041644,10]
[357617198,1744235567221,-165.94339,0.00041688,7]
[357617199,1744235567232,-209.0,0.0004175,30]
[357617200,1744235567244,-324.0,0.0004175,2]
[357617201,1744235567255,-150.0,0.0004178,30]
[357617202,1744235567266,-151.041005,0.00041798,120]
[357617203,1744235567278,-568.0,0.0004187,120]
[357617204,1744235567289,-568.0,0.0004188,120]